bitfinex/quotes_BTCUSD_20250114
["timestamp","ask_amount","ask_price","bid_price","bid_amount"]
[1736868908319,0.00206122,96804.0,96803.0,0.32306352]
[1736868908518,0.00606122,96804.0,96803.0,0.37472352]
[1736868908940,0.00406122,96804.0,96803.0,0.2704966]
[1736868909149,0.00406122,96804.0,96803.0,0.2600563]
[1736868909575,0.00406122,96804.0,96803.0,0.2083963]
[1736868910063,0.02706122,96804.0,96803.0,0.0017913]
[1736868910264,0.03976734,96804.0,96803.0,0.0017913]
[1736868910471,0.02406122,96804.0,96803.0,0.0017913]
[1736868910892,0.02406122,96804.0,96803.0,0.0047913]
[1736868911099,0.00106122,96804.0,96803.0,0.0047913]
[1736868911306,0.00106122,96804.0,96803.0,0.0027913]
[1736868911508,0.00106122,96804.0,96803.0,0.0534513]
[1736868911833,0.00106122,96804.0,96803.0,0.0554513]
[1736868911987,0.00106122,96804.0,96803.0,0.0544513]
[1736868912222,0.00106122,96804.0,96803.0,0.0534513]
[1736868912446,0.00106122,96804.0,96803.0,0.0594513]
[1736868913162,0.00106122,96807.0,96803.0,0.0594513]
[1736868913369,0.0008537,96812.0,96804.0,0.10422692]
[1736868913571,0.0008537,96812.0,96809.0,0.206592]
[1736868913773,0.00106122,96810.0,96809.0,0.413184]
[1736868913984,0.0008537,96812.0,96809.0,0.56907092]
[1736868915221,0.0008537,96812.0,96809.0,0.57007092]
[1736868915429,0.0008537,96812.0,96811.0,0.256488]
[1736868915596,0.0008537,96812.0,96811.0,0.41237492]
[1736868916508,0.0008537,96812.0,96811.0,0.308148]
[1736868916711,0.0008537,96812.0,96811.0,0.258248]
[1736868916929,0.0008537,96812.0,96811.0,0.36247492]
[1736868917450,0.0008537,96812.0,96811.0,0.258248]
[1736868917659,0.0008537,96812.0,96811.0,0.267248]
[1736868917890,0.0008537,96812.0,96811.0,0.258248]
[1736868918242,0.00191492,96812.0,96811.0,0.265248]
[1736868918437,0.00191492,96812.0,96811.0,0.05466]
[1736868918867,0.02491492,96812.0,96811.0,0.05766]
[1736868919076,0.00106122,96804.0,96803.0,0.0017913]
[1736868919274,0.00235267,96804.0,96803.0,0.0017913]
[1736868920333,0.02535267,96804.0,96803.0,0.0017913]
[1736868920993,0.23057959,96804.0,96803.0,0.0017913]
[1736868921162,0.30558814,96804.0,96803.0,0.0017913]
[1736868921364,0.40812585,96804.0,96803.0,0.0017913]
[1736868921795,0.40912585,96804.0,96803.0,0.0017913]
[1736868922866,0.10236122,96804.0,96803.0,0.0017913]
[1736868923109,0.10365276,96804.0,96803.0,0.0017913]
[1736868924377,0.45787968,96804.0,96803.0,0.0017913]
[1736868924552,0.55658814,96804.0,96803.0,0.0017913]
[1736868924705,0.45658814,96804.0,96803.0,0.0017913]
[1736868924915,0.00306122,96804.0,96803.0,0.0017913]
[1736868925289,0.03917869,96804.0,96803.0,0.0017913]
[1736868925442,0.06117869,96804.0,96803.0,0.0017913]
[1736868925660,0.06217869,96804.0,96803.0,0.0017913]
[1736868925856,0.06317869,96804.0,96803.0,0.0027913]
[1736868926205,0.06217869,96804.0,96803.0,0.0017913]
[1736868926983,0.06117869,96804.0,96803.0,0.0017913]
[1736868927378,0.0253527,96804.0,96803.0,0.0017913]
[1736868927577,0.02535261,96804.0,96803.0,0.0017913]
[1736868928144,0.02735261,96804.0,96803.0,0.0017913]
[1736868928425,0.02635261,96804.0,96803.0,0.0017913]
[1736868928631,0.02535261,96804.0,96803.0,0.0017913]
[1736868928807,0.02506122,96804.0,96803.0,0.0017913]
[1736868929008,0.001,96804.0,96803.0,0.0017913]
[1736868929432,0.003,96804.0,96803.0,0.0017913]
[1736868929644,0.001,96804.0,96803.0,0.11634113]
[1736868929842,0.001,96804.0,96803.0,0.16800113]
[1736868930046,0.001,96804.0,96803.0,0.15767822]
[1736868930247,0.00106122,96810.0,96809.0,0.206592]
[1736868930448,0.00106122,96810.0,96809.0,0.31081892]
[1736868930663,0.00106122,96815.0,96809.0,0.56907092]
[1736868930896,0.00072934,96827.0,96811.0,0.252988]
[1736868931094,0.00072934,96827.0,96811.0,0.63767492]
[1736868931710,0.00179056,96827.0,96811.0,0.63767492]
[1736868931884,0.00106122,96821.0,96811.0,0.48767492]
[1736868932287,0.00072934,96827.0,96811.0,0.48767492]
[1736868932288,0.00072934,96827.0,96811.0,0.65067492]
[1736868933116,0.00072934,96827.0,96815.0,0.1]
[1736868933379,0.00072934,96827.0,96826.0,0.206556]
[1736868933561,0.00072934,96827.0,96826.0,0.31078292]
[1736868933766,0.00072934,96827.0,96826.0,0.258216]
[1736868934282,0.00179056,96827.0,96826.0,0.36244292]
[1736868934488,3.4e-07,96827.0,96826.0,0.36244292]
[1736868934719,3.4e-07,96827.0,96826.0,0.51879971]
[1736868934883,3.4e-07,96827.0,96826.0,0.54200716]
[1736868935095,3.4e-07,96827.0,96826.0,0.54300716]
[1736868935269,0.00191532,96851.0,96850.0,0.206504]
[1736868935479,0.00135195,96851.0,96850.0,0.258164]
[1736868935680,0.00241317,96851.0,96850.0,0.258164]
[1736868937883,0.02541317,96851.0,96850.0,0.05666]
[1736868938099,0.03558449,96851.0,96850.0,0.005]
[1736868938236,0.24374476,96851.0,96850.0,0.001]
[1736868938446,0.02934652,96851.0,96850.0,0.001]
[1736868938643,0.00106122,96843.0,96840.0,0.20329654]
[1736868938848,0.00135195,96851.0,96850.0,0.206504]
[1736868939086,0.00135195,96851.0,96850.0,0.209504]
[1736868939290,0.00241317,96851.0,96850.0,0.258164]
[1736868939553,0.00241317,96851.0,96850.0,0.206504]
[1736868941242,0.00241317,96851.0,96850.0,0.258164]
[1736868941459,0.00241317,96851.0,96850.0,0.262164]
[1736868941850,0.00241317,96851.0,96850.0,0.258164]
[1736868942046,0.00241317,96851.0,96850.0,0.263164]
[1736868942390,0.00241317,96851.0,96850.0,0.265164]
[1736868944036,0.00241317,96851.0,96850.0,0.007]
[1736868944236,0.02541317,96851.0,96850.0,0.007]
[1736868944478,0.0623245,96851.0,96850.0,0.005]
[1736868944685,0.04684547,96851.0,96850.0,0.005]
[1736868944939,0.023,96850.0,96842.0,0.206521]
[1736868945152,0.00106122,96834.0,96833.0,0.206539]
[1736868945345,0.00106122,96834.0,96833.0,0.258199]
[1736868947648,0.00106122,96834.0,96833.0,0.259199]
[1736868948072,0.00106122,96834.0,96833.0,0.262199]
[1736868949238,0.00106122,96840.0,96839.0,0.206527]
[1736868950668,0.00106122,96840.0,96839.0,0.210527]
[1736868951036,0.00106122,96840.0,96839.0,0.212527]
[1736868951267,0.00106122,96840.0,96839.0,0.006]
[1736868951466,0.00106122,96840.0,96839.0,0.208528]
[1736868951638,0.00106122,96840.0,96839.0,0.206528]
[1736868951851,0.00106122,96840.0,96839.0,0.209528]
[1736868952092,0.00106122,96840.0,96839.0,0.207528]
[1736868952358,0.00106122,96840.0,96839.0,0.208528]
[1736868953749,0.00106122,96840.0,96839.0,0.207528]
[1736868954154,0.00135195,96851.0,96839.0,0.207528]
[1736868954155,0.00106122,96849.0,96848.0,0.206508]
[1736868955215,0.00106122,96840.0,96839.0,0.206526]
[1736868955405,0.00106122,96827.0,96821.0,0.21683358]
[1736868955689,0.00106122,96822.0,96821.0,0.206564]
[1736868957319,0.00106122,96822.0,96821.0,0.258224]
[1736868957873,0.2,96847.0,96821.0,0.258224]
[1736868957874,0.00106122,96830.0,96821.0,0.43164213]
[1736868958057,0.00106122,96828.0,96827.0,0.206553]
[1736868958256,0.00106122,96832.0,96827.0,0.36243992]
[1736868958469,0.00106122,96836.0,96831.0,0.206545]
[1736868958705,0.00106122,96836.0,96835.0,0.206536]
[1736868958904,0.00106122,96836.0,96835.0,0.258196]
[1736868960631,0.00106122,96836.0,96835.0,0.206536]
[1736868961269,0.00106122,96836.0,96835.0,0.207536]
[1736868961466,0.00106122,96836.0,96835.0,0.208536]
[1736868961829,0.00106122,96829.0,96828.0,0.206551]
[1736868962036,0.00106122,96818.0,96817.0,0.21685912]
[1736868962246,0.00106122,96831.0,96830.0,0.206547]
[1736868962489,0.0008541,96851.0,96849.0,0.206507]
[1736868962700,0.0008541,96851.0,96850.0,0.15332692]
[1736868963119,0.00191532,96851.0,96850.0,0.15332692]
[1736868963321,0.00241317,96851.0,96850.0,0.15332692]
[1736868963757,0.00241317,96851.0,96850.0,0.0491]
[1736868964428,0.00241317,96851.0,96850.0,0.10076]
[1736868964594,0.00241317,96851.0,96850.0,0.10376]
[1736868964816,0.00241317,96851.0,96850.0,0.11990472]
[1736868965013,0.00135195,96851.0,96850.0,0.11990472]
[1736868965222,0.00241317,96851.0,96850.0,0.11990472]
[1736868965988,0.00135195,96851.0,96850.0,0.22413164]
[1736868966442,0.00241317,96851.0,96850.0,0.22413164]
[1736868967128,0.00135195,96851.0,96850.0,0.22413164]
[1736868967553,0.00135195,96851.0,96850.0,0.37413164]
[1736868967769,0.0008536,96860.0,96859.0,0.206485]
[1736868968025,0.00100283,96860.0,96859.0,0.36237192]
[1736868968201,0.00100283,96860.0,96859.0,1.86237192]
[1736868969960,0.00206405,96860.0,96859.0,0.258145]
[1736868970156,0.00206405,96860.0,96859.0,0.05166]
[1736868970364,0.04591776,96860.0,96859.0,0.05166]
[1736868970567,0.40867691,96860.0,96859.0,0.05166]
[1736868970772,0.50738614,96860.0,96859.0,0.013]
[1736868970973,0.40758222,96842.0,96841.0,0.09247327]
[1736868971150,0.68480914,96842.0,96841.0,0.09247327]
[1736868971412,0.7961592,96842.0,96841.0,0.09247327]
[1736868971621,0.7961592,96842.0,96818.0,0.206571]
[1736868971622,0.023,96829.0,96818.0,0.206571]
[1736868971829,0.00106122,96837.0,96835.0,0.01019702]
[1736868972033,0.03015163,96828.0,96818.0,0.206571]
[1736868972240,0.03015163,96828.0,96814.0,0.20658]
[1736868972241,0.00106122,96820.0,96814.0,0.20658]
[1736868972407,0.00106122,96820.0,96810.0,0.206588]
[1736868972408,0.00106122,96820.0,96815.0,0.206578]
[1736868972844,0.00106122,96820.0,96819.0,0.00229041]
[1736868973212,0.03113112,96820.0,96819.0,0.00229041]
[1736868973428,0.13535804,96820.0,96819.0,0.00229041]
[1736868973583,0.48535804,96820.0,96819.0,0.00229041]
[1736868973982,0.48635804,96820.0,96819.0,0.00229041]
[1736868974398,0.38835804,96820.0,96819.0,0.00229041]
[1736868974692,0.18413112,96820.0,96819.0,0.00229041]
[1736868974867,0.01313112,96820.0,96819.0,0.00229041]
[1736868975067,0.02213112,96820.0,96819.0,0.02417755]
[1736868975311,0.014,96820.0,96819.0,0.02417755]
[1736868975512,0.00606122,96820.0,96819.0,1.55395041]
[1736868975720,0.01506122,96820.0,96819.0,1.65917733]
[1736868976022,0.09173341,96829.0,96821.0,0.09893878]
[1736868976251,0.07773341,96829.0,96828.0,0.356551]
[1736868976375,0.07773341,96829.0,96828.0,1.96077792]
[1736868976585,0.00106122,96852.0,96831.0,0.15]
[1736868976776,0.00106122,96853.0,96833.0,0.15]
[1736868977006,0.07773341,96858.0,96850.0,0.206504]
[1736868977168,0.07773341,96858.0,96850.0,0.50983092]
[1736868977373,0.0008536,96860.0,96850.0,0.50983092]
[1736868977857,0.0008536,96860.0,96850.0,0.56149092]
[1736868977996,0.0008536,96860.0,96850.0,2.07265502]
[1736868978193,0.0010028,96851.0,96850.0,2.07265502]
[1736868978419,0.0020028,96851.0,96850.0,2.07965502]
[1736868978638,0.0010028,96851.0,96850.0,2.07265502]
[1736868978922,0.0010028,96851.0,96850.0,2.08165502]
[1736868979150,8e-07,96851.0,96850.0,2.08165502]
[1736868979551,8e-07,96851.0,96850.0,2.08765502]
[1736868980128,8e-07,96851.0,96850.0,2.09206535]
[1736868980289,8e-07,96851.0,96850.0,2.09806535]
[1736868981022,0.0008536,96860.0,96851.0,0.15]
[1736868981220,0.0008536,96860.0,96859.0,0.206485]
[1736868981436,0.0008536,96860.0,96859.0,0.36237192]
[1736868982189,0.0008536,96860.0,96859.0,0.51237192]
[1736868982389,0.0008536,96860.0,96859.0,0.52037192]
[1736868983334,0.0008536,96860.0,96859.0,0.52437192]
[1736868985164,0.0008536,96860.0,96859.0,0.37437192]
[1736868985540,0.00191482,96860.0,96859.0,0.270145]
[1736868986009,0.0008536,96860.0,96859.0,0.37437192]
[1736868986252,0.0008536,96860.0,96859.0,0.32271192]
[1736868986713,0.0008536,96860.0,96859.0,0.31871192]
[1736868987329,0.0008536,96860.0,96859.0,0.31071192]
[1736868987720,0.0008536,96860.0,96859.0,0.36519192]
[1736868988324,0.0008536,96860.0,96859.0,0.36219192]
[1736868988850,0.0008536,96860.0,96859.0,0.37019192]
[1736868989064,0.0008536,96860.0,96859.0,0.43971071]
[1736868989277,0.0008536,96860.0,96859.0,0.45171071]
[1736868989491,0.0008536,96860.0,96859.0,0.37419192]
[1736868989851,0.0008536,96860.0,96859.0,0.37119192]
[1736868990079,0.0008536,96860.0,96859.0,0.60309192]
[1736868990290,0.0008536,96860.0,96859.0,0.65219192]
[1736868990670,0.0008536,96860.0,96859.0,0.271965]
[1736868990875,0.00191482,96860.0,96859.0,0.271965]
[1736868991118,0.00191482,96860.0,96859.0,0.262965]
[1736868991321,0.00191482,96860.0,96859.0,0.271965]
[1736868991866,0.0008536,96860.0,96859.0,0.36719192]
[1736868992039,0.0008536,96860.0,96859.0,0.43968712]
[1736868992270,0.0008536,96860.0,96859.0,0.43068712]
[1736868992397,0.0008536,96860.0,96859.0,0.43568712]
[1736868992623,0.0008536,96860.0,96859.0,0.37019192]
[1736868992833,0.0008536,96860.0,96859.0,0.36519192]
[1736868993382,0.0007293,96860.0,96859.0,0.264965]
[1736868993517,0.00179052,96860.0,96859.0,0.264965]
[1736868994294,0.00179052,96860.0,96859.0,0.261965]
[1736868994721,0.0007293,96860.0,96859.0,0.44268712]
[1736868994922,0.0007293,96860.0,96859.0,0.43368712]
[1736868995222,0.0007293,96860.0,96859.0,0.51058712]
[1736868995603,0.0007293,96860.0,96859.0,0.50858712]
[1736868996144,0.0007293,96860.0,96859.0,0.65658712]
[1736868996888,0.0007293,96860.0,96859.0,0.59309192]
[1736868997068,0.0007293,96860.0,96859.0,0.60209192]
[1736868997227,0.0007293,96860.0,96859.0,0.59309192]
[1736868997641,0.0007293,96860.0,96859.0,0.60209192]
[1736868998070,0.0007293,96860.0,96859.0,0.59809192]
[1736868998459,0.0007293,96860.0,96859.0,0.60409192]
[1736868998901,0.0007293,96860.0,96859.0,0.61879692]
[1736868999307,0.0007293,96860.0,96859.0,0.60409192]
[1736868999511,0.0007293,96860.0,96859.0,0.70786569]
[1736869000694,0.0008536,96880.0,96875.0,0.206451]
[1736869000899,0.01364398,96876.0,96875.0,0.36215792]
[1736869001313,9.8e-07,96877.0,96876.0,0.15]
[1736869001539,9.8e-07,96877.0,96876.0,0.30570692]
[1736869001749,9.8e-07,96877.0,96876.0,1.81732417]
[1736869002412,9.8e-07,96877.0,96876.0,0.31732417]
[1736869002948,9.8e-07,96877.0,96876.0,0.30570692]
[1736869003149,9.8e-07,96877.0,96876.0,0.16170692]
[1736869003763,9.8e-07,96877.0,96876.0,0.05748]
[1736869003931,0.0010622,96877.0,96876.0,0.05748]
[1736869004123,0.0010622,96877.0,96876.0,0.06648]
[1736869004524,0.0010622,96877.0,96876.0,0.06048]
[1736869004848,0.0010622,96877.0,96876.0,0.05548]
[1736869005144,9.8e-07,96877.0,96876.0,0.16170692]
[1736869005342,9.8e-07,96877.0,96876.0,0.15570692]
[1736869005685,9.8e-07,96877.0,96876.0,0.15870692]
[1736869005917,9.8e-07,96877.0,96876.0,0.30870692]
[1736869006342,9.8e-07,96877.0,96876.0,0.41293384]
[1736869006816,9.8e-07,96877.0,96876.0,0.41893384]
[1736869006996,9.8e-07,96877.0,96876.0,0.41293384]
[1736869007226,2.8e-07,96877.0,96876.0,0.41293384]
[1736869007416,2.8e-07,96877.0,96876.0,0.41893384]
[1736869007659,2.8e-07,96877.0,96876.0,0.40993384]
[1736869007834,2.8e-07,96877.0,96876.0,0.42393384]
[1736869008213,2.8e-07,96877.0,96876.0,0.40993384]
[1736869008409,2.8e-07,96877.0,96876.0,0.41893384]
[1736869008722,2.8e-07,96877.0,96876.0,0.42493384]
[1736869009365,8.8e-07,96880.0,96879.0,0.0484]
[1736869009538,0.0008533,96901.0,96900.0,0.206398]
[1736869009741,0.0010025,96901.0,96900.0,1.86210492]
[1736869011145,0.0010025,96901.0,96900.0,1.87651918]
[1736869011378,0.0010025,96901.0,96900.0,1.87251918]
[1736869011785,0.0010025,96901.0,96900.0,1.88151918]
[1736869012403,0.0010025,96901.0,96900.0,1.9897461]
[1736869012601,0.0010025,96901.0,96900.0,0.38551918]
[1736869012812,0.0010025,96901.0,96900.0,0.53551918]
[1736869013125,0.0010025,96901.0,96900.0,0.52251918]
[1736869013521,0.0010025,96901.0,96900.0,0.53151918]
[1736869013684,0.0010025,96901.0,96900.0,0.52251918]
[1736869014094,0.0010025,96901.0,96900.0,0.53151918]
[1736869014498,0.0010025,96901.0,96900.0,0.53651918]
[1736869014871,0.0010025,96901.0,96900.0,0.53151918]
[1736869015295,0.0010025,96901.0,96900.0,0.53651918]
[1736869017639,0.00206372,96901.0,96900.0,0.28229226]
[1736869018263,0.00206372,96901.0,96900.0,0.27329226]
[1736869018506,0.01025009,96901.0,96900.0,0.05148]
[1736869018678,0.01025009,96901.0,96900.0,0.009]
[1736869018881,0.00206372,96901.0,96900.0,0.009]
[1736869019236,0.00206372,96901.0,96900.0,0.006]
[1736869019237,0.68568664,96901.0,96900.0,0.006]
[1736869019695,0.03198189,96901.0,96900.0,0.006]
[1736869019903,0.03092067,96901.0,96900.0,0.006]
[1736869020160,0.03198189,96901.0,96900.0,0.006]
[1736869020398,0.05328909,96901.0,96891.0,0.01034345]
[1736869020627,0.05328909,96901.0,96888.0,0.206422]
[1736869020628,0.00106122,96889.0,96888.0,0.206422]
[1736869021888,0.00106122,96889.0,96888.0,0.209422]
[1736869022101,0.00106122,96889.0,96888.0,0.211422]
[1736869022692,0.00106122,96889.0,96888.0,0.262902]
[1736869023806,0.00106122,96889.0,96888.0,0.262903]
[1736869024936,0.02406122,96889.0,96888.0,0.05648]
[1736869025155,0.45788558,96889.0,96888.0,0.005]
[1736869025370,0.79456636,96889.0,96888.0,0.005]
[1736869025587,0.83676636,96889.0,96888.0,0.005]
[1736869025818,0.81358992,96889.0,96888.0,0.003]
[1736869026932,0.00106122,96877.0,96876.0,0.00179151]
[1736869027161,0.02535167,96877.0,96876.0,0.00179151]
[1736869027365,0.0323171,96877.0,96876.0,0.00179151]
[1736869027568,0.48654402,96877.0,96876.0,0.00179151]
[1736869027780,0.66908049,96877.0,96876.0,0.00179151]
[1736869028336,0.67008049,96877.0,96876.0,0.00179151]
[1736869028521,0.66908049,96877.0,96876.0,0.00179151]
[1736869029104,0.56485357,96877.0,96876.0,0.00179151]
[1736869029304,0.00802665,96877.0,96876.0,0.00179151]
[1736869029722,0.23525357,96877.0,96876.0,0.00179151]
[1736869029923,0.46485357,96877.0,96876.0,0.00179151]
[1736869030128,0.56485357,96877.0,96876.0,0.00179151]
[1736869030326,0.56485357,96877.0,96851.0,0.00179193]
[1736869030327,0.00106122,96852.0,96851.0,0.00179193]
[1736869030659,0.55917909,96852.0,96851.0,0.00179193]
[1736869030859,0.56421411,96852.0,96851.0,0.00179193]
[1736869031245,0.58440308,96852.0,96851.0,0.00179193]
[1736869031581,0.59452279,96852.0,96851.0,0.00179193]
[1736869031783,0.48440308,96852.0,96851.0,0.00179193]
[1736869031992,0.58440308,96852.0,96851.0,0.00179193]
[1736869032126,0.68414229,96852.0,96851.0,0.00179193]
[1736869032330,0.58540308,96852.0,96851.0,0.00179193]
[1736869033535,0.58440308,96852.0,96851.0,0.00179193]
[1736869033735,0.58540308,96852.0,96851.0,0.00179193]
[1736869033931,0.58640308,96852.0,96851.0,0.00179193]
[1736869034214,0.48640308,96852.0,96851.0,0.00179193]
[1736869034413,0.6803842,96852.0,96851.0,0.00179193]
[1736869035691,0.69657999,96852.0,96851.0,0.00179193]
[1736869036670,0.69557999,96852.0,96851.0,0.00179193]
[1736869037146,0.69457999,96852.0,96851.0,0.00179193]
[1736869037395,0.60259887,96852.0,96851.0,0.00179193]
[1736869037570,0.36855289,96852.0,96851.0,0.00279193]
[1736869037793,0.28355289,96852.0,96851.0,0.00179193]
[1736869038042,0.00738719,96852.0,96851.0,0.00179193]
[1736869038212,0.01232597,96852.0,96851.0,0.00279193]
[1736869038410,0.025,96852.0,96851.0,0.00179193]
[1736869038628,0.031,96852.0,96851.0,0.00279193]
[1736869038786,0.008,96852.0,96851.0,0.00279193]
[1736869038986,0.00706122,96852.0,96851.0,0.00279193]
[1736869039395,0.00706122,96852.0,96851.0,0.05427193]
[1736869039635,0.03006122,96852.0,96851.0,0.05427193]
[1736869039834,0.03006734,96852.0,96851.0,0.05327193]
[1736869040086,0.02406122,96852.0,96851.0,0.00179193]
[1736869040262,0.003,96852.0,96851.0,0.00179193]
[1736869040440,0.00106122,96852.0,96851.0,0.00279193]
[1736869040987,0.00106122,96852.0,96851.0,0.00179193]
[1736869041864,0.00106122,96852.0,96851.0,0.05327193]
[1736869042002,0.00106122,96852.0,96851.0,0.06027193]
[1736869042380,0.00106122,96852.0,96851.0,0.00879193]
[1736869042910,0.02424562,96852.0,96851.0,0.00879193]
[1736869043111,0.03035202,96852.0,96851.0,0.00379193]
[1736869043541,0.03035202,96852.0,96851.0,0.00479193]
[1736869043849,0.03035202,96852.0,96851.0,0.00379193]
[1736869044087,0.03035202,96852.0,96851.0,0.00179193]
[1736869044256,0.2358697,96852.0,96851.0,0.00379193]
[1736869044431,0.56724471,96852.0,96851.0,0.00379193]
[1736869044841,0.56724471,96852.0,96851.0,0.00179193]
[1736869045407,0.64504471,96852.0,96851.0,0.00179193]
[1736869045628,0.65840822,96830.0,96819.0,0.00179256]
[1736869045834,0.55762922,96820.0,96819.0,0.00179256]
[1736869046090,0.58484622,96812.0,96811.0,0.00179277]
[1736869046261,0.71207314,96812.0,96811.0,0.00179277]
[1736869046461,0.71816749,96812.0,96811.0,0.00179277]
[1736869046777,0.55770622,96784.0,96783.0,0.00227643]
[1736869047053,0.77265425,96784.0,96783.0,0.00227643]
[1736869047271,0.87700928,96784.0,96783.0,0.00227643]
[1736869047565,1.20220928,96784.0,96783.0,0.00227643]
[1736869047926,0.20776822,96755.0,96735.0,0.206749]
[1736869048127,0.68628732,96755.0,96734.0,0.0482]
[1736869048340,0.68628732,96755.0,96730.0,0.00179298]
[1736869048341,0.69101537,96755.0,96730.0,0.00179298]
[1736869048534,0.77025192,96755.0,96730.0,0.20855198]
[1736869048903,0.77025192,96755.0,96730.0,0.00179298]
[1736869049114,0.78040277,96755.0,96730.0,0.00179298]
[1736869049320,0.77025192,96755.0,96730.0,0.00179298]
[1736869049530,0.30362263,96755.0,96735.0,0.20675]
[1736869049644,0.40468385,96755.0,96739.0,0.20674]
[1736869049845,0.40468385,96755.0,96735.0,0.20675]
[1736869049846,0.48678845,96755.0,96735.0,0.20675]
[1736869050103,0.48678845,96755.0,96739.0,0.20674]
[1736869050468,0.48678845,96755.0,96739.0,0.206739]
[1736869050871,0.49278845,96755.0,96754.0,0.00279256]
[1736869051084,0.49278845,96755.0,96754.0,0.00179256]
[1736869051085,0.18102023,96755.0,96754.0,0.00179256]
[1736869051286,0.48760047,96755.0,96754.0,0.00179256]
[1736869051508,0.48730837,96755.0,96754.0,0.00179256]
[1736869051669,0.48930837,96755.0,96754.0,0.00179256]
[1736869051866,0.48930837,96755.0,96754.0,0.00279256]
[1736869052067,0.58457951,96755.0,96754.0,0.00279256]
[1736869052676,0.60510098,96755.0,96754.0,0.00279256]
[1736869053194,0.59710098,96755.0,96754.0,0.00179256]
[1736869053631,0.49910098,96755.0,96754.0,0.00179256]
[1736869053824,0.49510098,96755.0,96754.0,0.00179256]
[1736869054031,0.49769863,96755.0,96754.0,0.00179256]
[1736869054231,0.2898448,96755.0,96754.0,0.00179256]
[1736869054475,0.38690602,96755.0,96754.0,0.00179256]
[1736869054698,0.2858448,96755.0,96754.0,0.00179256]
[1736869054915,0.18461788,96755.0,96754.0,0.00179256]
[1736869055970,0.1856791,96755.0,96754.0,0.00179256]
[1736869056177,0.01161788,96755.0,96754.0,0.00179256]
[1736869056376,0.13551615,96755.0,96754.0,0.00179256]
[1736869056588,0.50851615,96755.0,96754.0,0.00179256]
[1736869056796,0.83542411,96755.0,96754.0,0.00179256]
[1736869057001,0.83242411,96755.0,96754.0,0.00179256]
[1736869057208,0.92100797,96755.0,96754.0,0.00179256]
[1736869057419,0.92100797,96755.0,96722.0,0.00179298]
[1736869057420,0.37406122,96731.0,96722.0,0.00179298]
[1736869057623,0.55704466,96731.0,96722.0,0.00179298]
[1736869058434,0.32162536,96731.0,96730.0,0.00179298]
[1736869058735,0.52568658,96731.0,96730.0,0.00179298]
[1736869058898,0.52568658,96731.0,96730.0,0.00229083]
[1736869059302,0.40482132,96731.0,96730.0,0.00229083]
[1736869059523,0.30482132,96731.0,96730.0,0.00229083]
[1736869059730,0.01138009,96731.0,96730.0,0.00229083]
[1736869059922,0.00838009,96731.0,96730.0,0.00229083]
[1736869060128,0.01138009,96731.0,96730.0,0.00229083]
[1736869060450,0.38989944,96731.0,96730.0,0.00229083]
[1736869060685,0.48294735,96731.0,96730.0,0.00229083]
[1736869060964,0.47594735,96731.0,96730.0,0.00329083]
[1736869061119,0.47794735,96731.0,96730.0,0.00329083]
[1736869061530,0.47794735,96731.0,96730.0,0.00229083]
[1736869061751,0.47894735,96731.0,96730.0,0.00229083]
[1736869062692,0.47694735,96731.0,96730.0,0.00229083]
[1736869062832,0.57894735,96731.0,96730.0,0.00229083]
[1736869063027,0.47894735,96731.0,96730.0,0.00229083]
[1736869063684,0.16138009,96731.0,96730.0,0.00229083]
[1736869063880,0.0116113,96731.0,96730.0,0.00229083]
[1736869064082,0.01031887,96731.0,96730.0,0.00229083]
[1736869064355,0.00406122,96731.0,96730.0,0.00229083]
[1736869064577,0.02606122,96731.0,96730.0,0.00229083]
[1736869064797,0.03908164,96731.0,96730.0,0.00229083]
[1736869065000,0.04008164,96731.0,96730.0,0.00229083]
[1736869065439,0.01147552,96731.0,96730.0,0.00229083]
[1736869065671,0.00206122,96731.0,96730.0,0.10017083]
[1736869065900,0.001,96731.0,96730.0,0.10017083]
[1736869066103,0.001,96731.0,96730.0,0.206761]
[1736869066331,0.002,96731.0,96728.0,0.285764]
[1736869066506,0.002,96731.0,96730.0,0.10701927]
[1736869066720,0.002,96731.0,96730.0,0.1877012]
[1736869066919,0.0008535,96783.0,96731.0,0.15]
[1736869067076,0.10422692,96782.0,96766.0,0.206683]
[1736869067278,0.00106122,96767.0,96766.0,0.206683]
[1736869067679,0.00106122,96777.0,96776.0,0.206662]
[1736869068296,0.00106122,96781.0,96780.0,0.206652]
[1736869068505,0.0028535,96783.0,96776.0,0.2068112]
[1736869068506,0.00106122,96777.0,96776.0,0.2068112]
[1736869068676,0.00106122,96777.0,96776.0,0.0001492]
[1736869069240,0.12828814,96777.0,96776.0,0.0001492]
[1736869069443,0.18344814,96777.0,96776.0,0.0001492]
[1736869069705,0.03301259,96777.0,96776.0,0.0001492]
[1736869070042,0.03301259,96777.0,96776.0,0.0011492]
[1736869070217,0.03172071,96777.0,96776.0,0.0011492]
[1736869070430,0.03172071,96777.0,96776.0,0.0001492]
[1736869070635,0.03301252,96777.0,96776.0,0.0001492]
[1736869070963,0.10272972,96777.0,96776.0,0.0011492]
[1736869071112,0.20695664,96777.0,96776.0,0.0011492]
[1736869071721,0.03172071,96777.0,96776.0,0.0011492]
[1736869072097,0.03301249,96777.0,96776.0,0.0011492]
[1736869072275,0.13723941,96777.0,96776.0,0.0001492]
[1736869072657,0.13723941,96777.0,96776.0,0.0011492]
[1736869072860,0.13723941,96777.0,96776.0,0.0001492]
[1736869073056,0.13723941,96777.0,96776.0,0.0011492]
[1736869073302,0.03065949,96777.0,96776.0,0.0011492]
[1736869073480,0.03172071,96777.0,96776.0,0.0001492]
[1736869073671,0.023,96777.0,96776.0,0.0011492]
[1736869073863,0.13496518,96777.0,96776.0,0.0011492]
[1736869074063,0.03839775,96777.0,96776.0,0.0011492]
[1736869074289,0.03172071,96777.0,96776.0,0.2078112]
[1736869074493,0.023,96777.0,96776.0,0.2078112]
[1736869074708,0.00106122,96777.0,96776.0,0.0011492]
[1736869074918,0.02406122,96777.0,96776.0,0.0011492]
[1736869075092,0.02955269,96777.0,96776.0,0.0011492]
[1736869075437,0.00106122,96777.0,96776.0,0.0011492]
[1736869076051,0.03,96778.0,96777.0,0.20666]
[1736869076399,0.03106122,96778.0,96777.0,0.20666]
[1736869076798,0.03,96778.0,96777.0,0.20666]
[1736869077113,0.03106122,96778.0,96777.0,0.20666]
[1736869077437,0.03,96778.0,96777.0,0.20666]
[1736869077643,0.03106122,96778.0,96777.0,0.32916]
[1736869078044,0.00106122,96778.0,96777.0,0.38078596]
[1736869078241,0.00106122,96782.0,96779.0,0.206656]
[1736869078488,0.0008535,96783.0,96779.0,0.05162596]
[1736869078752,0.0008535,96783.0,96780.0,0.206653]
[1736869078934,0.00106122,96781.0,96780.0,0.206653]
[1736869079140,0.00106122,96781.0,96780.0,0.22590619]
[1736869079468,0.00206122,96782.0,96780.0,0.22590619]
[1736869079659,0.00106122,96781.0,96780.0,0.22590619]
[1736869080064,0.00206122,96781.0,96780.0,0.22790619]